Cogmind - Beta 14 @@@ ROGUE MODE // 2024.10.17 @ 18:27:15 Player: zeyvai Result: Destroyed by YI-UF0 with YI-UF0's Doublenader Performance ------------- Evolutions (0) 0 Regions Visited (2) 400 Robots Destroyed (12) 60 Value Destroyed (181) 181 Prototype IDs (0) 0 Alien Tech Used (0) 0 Bonus (0) 0 TOTAL SCORE: 641 Bonus ------- None Cogmind --------- Core Integrity 0/250 Matter 130/300 Energy 88/100 System Corruption 1% Temperature Cool (0) Movement Core (150) Ox2 Location -10/Mines Parts ------- > --- POWER (1) -------- (None) > --- PROPULSION (2) --- (None) > --- UTILITY (2) ------ Small Storage Unit Seismic Detector > --- WEAPON (2) ------- EM Pulse Gun > --- INVENTORY (8) ---- Flight Unit Large Storage Unit Signal Interpreter EM Pulse Gun Grenade Launcher Peak State ------------ > --- POWER ------------ Light Ion Engine > --- PROPULSION ------- Hover Unit Hover Unit > --- UTILITY ---------- Small Storage Unit Seismic Detector > --- WEAPON ----------- EM Pulse Gun Assault Rifle > --- INVENTORY -------- Flight Unit Flight Unit Large Storage Unit Signal Interpreter EM Pulse Gun Medium Laser Small Laser Rocket Launcher [Rating: 7] Favorites ----------- Power Ion Engine Engine Ion Engine Propulsion Hover Unit Treads Light Treads Hover Unit Hover Unit Flight Unit Flight Unit Utility Small Storage Unit Device Seismic Detector Storage Small Storage Unit Weapon EM Pulse Gun Energy Gun EM Pulse Gun Ballistic Gun Assault Rifle Launcher Rocket Launcher Build | -11 -10 -10 ------- Run | Yrd Mat Min Slots Evolved . | . . . Power . | . . . Propulsion . | . . . Utility . | . . . Weapon . | . . . Parts Attached 17 | 6 7 4 Power 2 | 1 1 . Engine 2 | 1 1 . Core . | . . . Reactor . | . . . Propulsion 7 | 2 3 2 Treads 2 | 2 . . Leg . | . . . Wheel . | . . . Hover 3 | . 3 . Flight 2 | . . 2 Utility 4 | 1 2 1 Device 1 | . . 1 Storage 3 | 1 2 . Processor . | . . . Hackware . | . . . Protection . | . . . Artifact . | . . . Weapon 4 | 2 1 1 Energy Gun 2 | 2 . . Energy Cannon . | . . . Ballistic Gun 1 | . 1 . Ballistic Cannon . | . . . Launcher 1 | . . 1 Special Weapon . | . . . Impact Weapon . | . . . Slashing Weapon . | . . . Piercing Weapon . | . . . Special Melee Weapon . | . . . Unidentified Prototypes . | . . . Corrupted Parts 1 | . 1 . System Corruption 1 | . 1 . Parts Lost 7 | . . 7 Power 1 | . . 1 Propulsion 4 | . . 4 Utility . | . . . Weapon 2 | . . 2 Highest Loss Streak 7 | . . 7 To Critical Strikes . | . . . Average Slot Usage (%) 89 | . 85 94 Engine 13 | . 14 13 Treads 8 | . 16 . Hover 18 | . 11 25 Device 5 | . . 10 Storage 14 | . 14 14 Energy Gun 15 | . 16 14 Ballistic Gun 12 | . 11 13 Peak Build Rating 7 | 6 6 7 Average Rating 6 | 3 6 6 On Entrance 4 | . 6 6 Naked Turns . | . . . Heaviest Build 29 | 14 29 13 Greatest Support 40 | 40 40 12 Greatest Overweight (x) 2 | 1 2 1 Average Overweight (x) . | . . . Largest Inventory Capacity 15 | 8 15 8 Average Capacity 8 | 7 9 8 Most Carried 8 | 6 8 8 Average Carried 6 | 1 5 7 Final Capacity 8 | 8 8 8 Final Carried 8 | 1 8 5 Class Distribution -------------------- 100% | Mutant Dominant Class ---------------- Mutant | -10/Materials Mutant | -10/Mines Resources | -11 -10 -10 ----------- Run | Yrd Mat Min Matter Collected 263 | 130 68 65 Remotely . | . . . Salvage Created 254 | . 208 46 Parts 32 | . 23 9 Haulers Intercepted . | . . . Recyclers Shooed . | . . . Parts Field Recycled . | . . . Retrieved Matter . | . . . Parts Self-Destructed . | . . . Prevented . | . . . Kills | -11 -10 -10 ------- Run | Yrd Mat Min Combat Hostiles Destroyed 8 | . 5 3 Guns 8 | . 5 3 Classes Destroyed 4 | . 4 . Builder 1 | . 1 . Watcher 3 | . 3 . Swarmer 6 | . 3 3 Grunt 2 | . 2 . Best Kill Streak 7 | . 7 4 Combat Bots Only 4 | . 4 4 Max Kills in Single Turn 1 | . 1 1 Gunslinging . | . . . Exploded . | . . . Melee . | . . . Uniques/NPCs Destroyed . | . . . Combat | -11 -10 -10 -------- Run | Yrd Mat Min Hostile Shots Fired 51 | . 18 33 Missed 20 | . 7 13 Damage Taken 597 | . 98 499 Core 251 | . 48 203 Absorbed by Shields . | . . . Core Remaining (%) 100 | 100 . . Volleys Fired 25 | . 16 9 Largest 2 | . 2 2 Hottest 73 | . 60 73 Shots Fired 49 | . 32 17 Gun 47 | . 32 15 Cannon . | . . . Launcher 2 | . . 2 Special . | . . . Kinetic 22 | . 16 6 Thermal . | . . . Explosive 2 | . . 2 Electromagnetic 25 | . 16 9 Robot Hit Streak 5 | . 5 3 Robot Miss Streak 3 | . 3 2 Penetration Max . | . . . Secondary Targets 3 | . 1 2 Max Gunslinging Chain 1 | . 1 1 Shots Hit Robots 27 | . 17 10 Core Hits 16 | . 12 4 Critical Kills . | . . . Critical Parts Destroyed . | . . . Critical Strikes . | . . . Melee Attacks . | . . . Impact . | . . . Slashing . | . . . Piercing . | . . . Sneak Attacks . | . . . Combat Hostiles . | . . . Follow-up Attacks . | . . . Damage Inflicted 410 | . 285 125 Guns 353 | . 243 110 Cannons . | . . . Explosions 57 | . 42 15 Melee . | . . . Ramming . | . . . Kinetic 165 | . 121 44 Thermal 42 | . 42 . Explosive 15 | . . 15 Electromagnetic 188 | . 122 66 Impact . | . . . Slashing . | . . . Piercing . | . . . Highest Corruption 1 | . 1 1 Average Corruption 1 | . 1 1 Corruption Purged . | . . . Corruption Blocked . | . . . Effects 2 | . 1 1 Matter Fused 1 | . . 1 Data Loss (major) 1 | . 1 . Overload Shots . | . . . Overflow Damage . | . . . Projectiles . | . . . Explosions . | . . . Melee . | . . . Knockbacks . | . . . Impact . | . . . Kinetic . | . . . Secondary . | . . . Self-Inflicted Damage . | . . . Shots . | . . . Rammed . | . . . Targets Rammed . | . . . Kicked . | . . . Crushed . | . . . Highest Temperature 44 | . 44 36 Average Temperature 11 | . 10 15 Received Heat Transfer 30 | . 30 . Siege Activations . | . . . Robots Corrupted . | . . . Combat Hostiles . | . . . Parts Fried 1 | . 1 . Impact Corruptions . | . . . Robots Melted . | . . . Combat Hostiles . | . . . Parts Melted . | . . . Heat Transferred 100 | . 100 . Parts Sabotaged . | . . . Parts Stolen . | . . . Parts Stripped . | . . . Power Chain Reactions 1 | . 1 . Alert | -11 -10 -10 ------- Run | Yrd Mat Min Peak Influence 182 | . 182 140 Initial 70 | . . 70 Average 76 | . 38 134 Maximum Alert Level . | . . . Low Security (%) 100 | 100 100 100 Level 1 . | . . . Level 2 . | . . . Level 3 . | . . . Level 4 . | . . . Level 5 . | . . . High Security . | . . . Max Security . | . . . Squads Dispatched . | . . . Investigation . | . . . Extermination . | . . . Reinforcement . | . . . Assault . | . . . Garrison . | . . . Intercept . | . . . Searches Triggered . | . . . Construction Impeded . | . . . Haulers Reinforced . | . . . Active Scanning Responses . | . . . Cargo Convoy Interrupts . | . . . Stealth | -11 -10 -10 --------- Run | Yrd Mat Min Distress Signals 1 | . 1 . Communications Jammed . | . . . Distress Signals . | . . . Times Spotted 13 | . 9 4 Peak Tracking Total 5 | . 5 3 Tactical Retreats . | . . . Traps | -11 -10 -10 ------- Run | Yrd Mat Min Traps Triggered . | . . . Indirectly . | . . . Trap Hack Attempts . | . . . Triggered . | . . . Disarmed . | . . . Reprogrammed . | . . . Reused . | . . . Traps Extracted . | . . . Installed . | . . . Triggered . | . . . Machines | -11 -10 -10 ---------- Run | Yrd Mat Min Machines Disabled 1 | . 1 . Max in Single Turn 1 | . 1 . Machines Repaired . | . . . Machines Dismantled . | . . . Machines Sabotaged . | . . . Overloaded Fab Kills . | . . . Hacking | -11 -10 -10 --------- Run | Yrd Mat Min Machines Accessed 1 | . 1 . Terminals 1 | . 1 . Fabricators . | . . . Repair Stations . | . . . Recycling Units . | . . . Scanalyzers . | . . . Garrison Access . | . . . Total Hacks 3 | . 3 . Successful 1 | . 1 . Failed 2 | . 2 . Catastrophic . | . . . Database Lockouts . | . . . Manual . | . . . Terminals 3 | . 3 . Fabricators . | . . . Repair Stations . | . . . Recycling Units . | . . . Scanalyzers . | . . . Garrison Access . | . . . Terminal Hacks 1 | . 1 . Hauler Manifests 1 | . 1 . Fabricator Hacks . | . . . Repair Station Hacks . | . . . Recycling Unit Hacks . | . . . Scanalyzer . | . . . Garrison Access Hacks . | . . . Unauthorized Hacks . | . . . Terminals . | . . . Fabricators . | . . . Repair Stations . | . . . Recycling Units . | . . . Scanalyzers . | . . . Garrison Access . | . . . Data Cores Recovered . | . . . Used . | . . . Hacking Detections 1 | . 1 . Full Trace Events . | . . . Feedback Events . | . . . Feedback Blocked . | . . . Robot Schematics Acquired . | . . . Robots Built . | . . . Authchips . | . . . Time . | . . . Total Robot Build Rating . | . . . Part Schematics Acquired . | . . . Parts Built . | . . . Authchips . | . . . Time . | . . . Total Part Build Rating . | . . . Parts Repaired . | . . . Time . | . . . Parts Recycled . | . . . Recycled Matter . | . . . Retrieved Matter . | . . . Retrieved Components . | . . . Parts Scanalyzed . | . . . Part Schematics Acquired . | . . . Parts Damaged . | . . . Bothacking | -11 -10 -10 ------------ Run | Yrd Mat Min Used RIF Installer . | . . . Robots Hacked . | . . . Non-combat . | . . . Combat . | . . . Robot Hacks Applied . | . . . Relay Couplers Released . | . . . Fabnet Peak Effective % . | . . . Robots Rewired . | . . . Allies Hacked . | . . . Hacks Repelled . | . . . Allies | -11 -10 -10 -------- Run | Yrd Mat Min Total Allies . | . . . Largest Group . | . . . Highest-Rated Group . | . . . Highest-Rated Ally . | . . . Total Orders . | . . . Ally Attacks . | . . . Total Damage . | . . . Kills . | . . . Allies Corrupted . | . . . Allies Melted . | . . . Intel | -11 -10 -10 ------- Run | Yrd Mat Min Robot Analysis Total . | . . . Derelict Logs Recovered 1 | . . 1 Drone Launches . | . . . Drone Recoveries . | . . . Exploration | -11 -10 -10 ------------- Run | Yrd Mat Min Turns Passed 542 | 47 263 232 Spaces Moved 261 | 31 95 135 Core 13 | 13 . . Treads 55 | 18 37 . Legs . | . . . Wheels . | . . . Hover 190 | . 58 132 Flight 3 | . . 3 Fastest Speed 50 | 50 56 56 Average Speed 125 | 115 166 99 Slowest Speed 200 | 160 200 117 Overloaded Moves . | . . . Propulsion Burnouts . | . . . Robots Hopped . | . . . Cave-ins Triggered . | . . . Exploration Rate (%) 27 | 3 25 54 Regions Visited 2 Branch Regions 1 Pre-discovered Areas 1 | . . 1 Known Exits Taken . | . . . Unknown Exits Taken 2 | 1 1 . Scrap Searched 1 | . . 1 Spaces Dug . | . . . Terrain Destroyed 9 | . . 9 Melee . | . . . Projectile . | . . . AOE 9 | . . 9 Terrain Rammed . | . . . Walls Destroyed . | . . . Machines Disabled . | . . . Actions | -11 -10 -10 --------- Run | Yrd Mat Min Total 423 | 42 164 217 Wait 100 | . 39 61 Move 259 | 30 94 135 Hop . | . . . Pick Up 17 | 6 7 4 Fast Attach 2 | 1 . 1 Attach 8 | 5 . 3 Detach . | . . . Swap 7 | . 7 . Drop 5 | . 1 4 Fire 25 | . 16 9 Melee . | . . . Ram . | . . . Kick . | . . . Crush . | . . . Escape Stasis . | . . . Rewire . | . . . Trap . | . . . Miscellaneous . | . . . Route ------- -11/Scrapyard -10/Materials -10/Mines History --------- Turn | Location | Event 21 | -11/Scrapyard | Discovered new exit (range 15) 48 | -11/Scrapyard | Entered Materials 268 | -10/Materials | Discovered new exit (range 15) 311 | -10/Materials | Entered Mines 313 | -10/Mines | Build established: Mutant 345 | -10/Mines | Received a Rocket Launcher from a helpful Derelict 428 | -10/Mines | YI-UF0 nonchalantly dropped a Grenade Launcher on the ground 515 | -10/Mines | Learned location of Zion (-7) 533 | -10/Mines | Core integrity fell below 50% 541 | -10/Mines | Met a Derelict who couldn't figure out how to use a Trap Extractor 543 | -10/Mines | Destroyed by YI-UF0 with YI-UF0's Doublenader Last Messages --------------- YI-UF0 mumbles something. Acquired derelict log, extracted data. World map updated: -7/Zion. T-07 Excavator destroyed. Hover Unit destroyed. The unstable cave ceiling collapses. Assault Rifle destroyed. Flight Unit destroyed. Lgt. Ion Engine destroyed. The unstable cave ceiling collapses. Flight Unit destroyed. The unstable cave ceiling collapses. Rocket Launcher destroyed. H0-R2C(g): "So I found this thing but I have no idea how to use it. And who the hell trapped this place to begin with?!" H0-R2C(g): "I give up! Here you try, I'm outta here before something nasty happens..." Tosses Imp. Trap Extractor to the ground. The unstable cave ceiling collapses. Map ----- +----------------------------------------------------+ | ### #?????????????????##### #??# #????? | | ????????# #?????????????????????## ##??# #????? | | ?????????# #??????????????????????####???# |#????? | | ?????????# #?????????????????????????????# |#????? | | ?????????# ####??????????????????????????# #????? | | ?????????# #?????????????????????????##! ##???? | | ?????????#### #????????????????????????## #???? | | ????????????# #?????????????????????#### ##??? | | ????????????# #????????????????????## #### | | ????????????# #???????????????????## | | ????????????# #??????????????????## ## | | ????????????# #???????""?????????# ## | | ????????????# #???????!!"????????## | | ????????????# #???????/!"#????????# | | ????????????# #???????!* ####????# ### | | ????????????# #?#####""g #????## ### #?? | | ????????????# ### X ?????### #??## ##?? | | ???????????## ## ###???? ????###??? | | ??????????## ## #???# ?????????? | | ?????????## #? ##??# ##?????????? | | ?????????# ##?# #??# ???????????? | | ?????????# #??# #??# ????????????? | | ?????????## ##??# ##??# ????????????? | | ??????????# ##??# #????????????????? | | ??????????# #### ##???????????????? | | ??????????## @ # ##??????????????? | | ???????????### ### # #??????????????? | | ?????????????# ##?## # %= #??????????????? | | ?????????????# #??# #??????????????? | | ?????????????# #?# g ????????? | | ????????????? ????????? | | ???????????? | ?????????? | | ??????????? # # % ?????????? | | ?????????? ### ## ## * #??????????? | | ????????? #??# ##### ####? #??????????? | | ????????##???# ??? ?????? #??????????? | | ?????????????# ??? ???????#####???????????? | | ?????????????####??#######???????????????????????? | | ?????????????????????????????????????????????????? | | ?????????????????????????????????????????????????? | | ?????????????????????????????????????????????????? | | ?????????????????????????????????????????????????? | | ?????????????????????????????????????????????????? | | ?????????????????????????????????????????????????? | | ?????????????????????????????????????????????????? | | ?????????????????????????????????????????????????? | | ?????????????????????????????????????????????????? | | ?????????????????????????????????????????????????? | | ?????????????????????????????????????????????????? | | ?????????????????????????????????????????????????? | +----------------------------------------------------+ Best States ------------- Heat Dissipation 25 Energy Generation 10 Energy Capacity 250 Matter Stores 170 Matter Capacity 300 Sight Range 16 Terrain Scan Density 10 Evasion (%) 53 Recoil Reduction 2 Item Schematics ----------------- None Robot Schematics ------------------ None Fabricated ------------ Nothing Alien Tech Used ----------------- None Achievements -------------- None Challenges ------------ None Game ------ Seed TeslaThrowingGun Manual? 0 Play Time 00:07:21 Cumulative 35.8 hours Start 2024.10.17 @ 18:22:04 End 2024.10.17 @ 18:27:15 Sessions 1 Manual Loads 0 Difficulty Rogue Special Mode None Game No. 42 Rogue 40 Adventurer 2 Explorer 0 Win Type - Total 0 Types 0/0/0/0/0/0/0/0/0 Lore% 16 Gallery% 30 Achievement% 23 Wizard Run 0 Options --------- Layout 1 ASCII 0 Keyboard 0 Movement Mouse Keybinds 0 Fullscreen 0 Font 28/X11 Map View 50x35 Zoom Use 0% Tactical HUD 0 Map Filters NONE Filters NONE Steam 1 RUN: 8dd9015f-aba7-4a55-81bc-61a1f1c4de53